Cogmind - Beta 16.1 @@@ ROGUE MODE // 2026.02.23 @ 20:11:41 Player: Scared Dad Result: Destroyed by S-27 Virus with Autogun Performance ------------- Evolutions (6) 3000 Regions Visited (18) 3600 Robots Destroyed (179) 895 Value Destroyed (7886) 7886 Prototype IDs (15) 300 Alien Tech Used (0) 0 Bonus (1826) 1826 TOTAL SCORE: 17507 Bonus ------- High Alert Combat Kills 413 Follower Combat Kills 417 Entered Garrisons 200 Entered DSFs 500 Met R17 at Cetus 500 Friendly Fire -204 Cogmind --------- Core Integrity 0/1150 Matter 41/300 Energy 78/100 System Corruption 3% Temperature Cool (0) Movement Core (50) Location -4/Factory Parts ------- > --- POWER (2) -------- (None) > --- PROPULSION (3) --- (None) > --- UTILITY (10) ----- Improved Hacking Suite > --- WEAPON (4) ------- (None) > --- INVENTORY (5) ---- Linear Gravjet Improved Cooling System Improved Energy Well (400) HERF Cannon Peak State ------------ > --- POWER ------------ Micro Fission Core Quantum Reactor > --- PROPULSION ------- Armored Medium Treads Centrium Heavy Treads > --- UTILITY ---------- Advanced Cooling System Medium Storage Unit Active Sensor Suite Improved Heavy Armor Plating Centrium Medium Armor Plating Improved Hacking Suite Improved System Shield > --- WEAPON ----------- High-powered Shock Rifle Advanced Variable Charge Gun Quantum Rifle Railgun > --- INVENTORY -------- Fusion Compressor Micro Fission Core Armored Medium Treads Centrium Heavy Treads Advanced Targeting Computer Advanced Transmission Jammer Improved Remote Datajack [Rating: 135] Favorites ----------- Power Quantum Reactor Engine Ion Engine Power Core Light Nuclear Core Reactor Quantum Reactor Propulsion Light Treads Treads Light Treads Leg Carbon-fiber Leg Wheel Compact Wheel Hover Unit Linear Gravjet Flight Unit VTOL Module Utility Improved Signal Interpreter Device Advanced Cooling System Storage Small Storage Unit Processor Improved Signal Interpreter Hackware Improved Hacking Suite Protection Centrium Medium Armor Plating Weapon Advanced KE Penetrator Energy Gun Advanced Variable Charge Gun Energy Cannon Proton Cannon Ballistic Gun Advanced KE Penetrator Ballistic Cannon Mass Driver Special Weapon Mining Laser Build | -11 -10 -10 -10 -8 -7 -7 -7 -7 -7 -6 -6 -6 -5 -5 -5 -5 -5 -4 ------- Run | Yrd Mat Min Sub Mat Fac Was Fac DSF Gar Fac Was Fac Fac Ext Cet Arc Hub Fac Slots Evolved 12 | . . . . 4 2 . . . . 2 . . 2 . . . . 2 Power 1 | . . . . . 1 . . . . . . . . . . . . . Propulsion 1 | . . . . . 1 . . . . . . . . . . . . . Utility 8 | . . . . 3 . . . . . 1 . . 2 . . . . 2 Weapon 2 | . . . . 1 . . . . . 1 . . . . . . . . Parts Attached 203 | 6 11 3 10 26 7 6 . 2 24 7 . 11 3 17 22 8 16 24 Power 27 | 1 1 1 1 3 1 . . 2 3 1 . 2 1 2 3 1 1 3 Engine 11 | 1 1 1 1 2 1 . . 2 1 . . . . 1 . . . . Core 12 | . . . . 1 . . . . 2 1 . 2 1 1 . . 1 3 Reactor 4 | . . . . . . . . . . . . . . . 3 1 . . Propulsion 42 | 2 3 . 2 6 1 1 . . 9 . . 3 . 4 2 2 2 5 Treads 25 | . 3 . . 6 1 1 . . 3 . . 1 . 2 2 2 2 2 Leg 6 | . . . . . . . . . 3 . . 2 . 1 . . . . Wheel 5 | 2 . . 2 . . . . . . . . . . . . . . 1 Hover 2 | . . . . . . . . . . . . . . . . . . 2 Flight 4 | . . . . . . . . . 3 . . . . 1 . . . . Utility 69 | 1 1 1 2 7 3 3 . . 7 3 . 4 2 5 10 4 7 9 Device 36 | . 1 . 1 2 2 3 . . 2 2 . 2 2 3 3 3 3 7 Storage 5 | 1 . . . . . . . . . 1 . . . 1 . . 1 1 Processor 7 | . . . . 1 1 . . . 1 . . 1 . . 1 . 1 1 Hackware 4 | . . . . . . . . . 2 . . . . . . 1 1 . Protection 17 | . . 1 1 4 . . . . 2 . . 1 . 1 6 . 1 . Artifact . | . . . . . . . . . . . . . . . . . . . Weapon 65 | 2 6 1 5 10 2 2 . . 5 3 . 2 . 6 7 1 6 7 Energy Gun 31 | . 5 . 1 6 . . . . 3 2 . 1 . 2 4 . 6 1 Energy Cannon 6 | . . . . . . . . . . . . . . 3 . . . 3 Ballistic Gun 22 | 2 1 1 3 4 2 2 . . 2 . . 1 . . 3 1 . . Ballistic Cannon 4 | . . . . . . . . . . 1 . . . 1 . . . 2 Launcher . | . . . . . . . . . . . . . . . . . . . Special Weapon 2 | . . . 1 . . . . . . . . . . . . . . 1 Impact Weapon . | . . . . . . . . . . . . . . . . . . . Slashing Weapon . | . . . . . . . . . . . . . . . . . . . Piercing Weapon . | . . . . . . . . . . . . . . . . . . . Special Melee Weapon . | . . . . . . . . . . . . . . . . . . . Unidentified Prototypes 13 | . . . . 4 . 1 . . . 1 . . . . 4 . 1 2 Corrupted Parts 6 | . . . . . . . . . . . . . . 1 3 . 1 1 System Corruption 11 | . . . . . . . . . . . . . . 5 3 . 2 1 Parts Lost 89 | . 3 . 11 6 3 . . . 14 . 4 8 . 10 5 . 5 20 Power 14 | . . . 2 1 . . . . 1 . 1 2 . 2 1 . 1 3 Propulsion 23 | . 2 . 5 1 . . . . 3 . 2 3 . 2 . . . 5 Utility 23 | . . . 1 1 3 . . . 5 . . 1 . 4 2 . 1 5 Weapon 29 | . 1 . 3 3 . . . . 5 . 1 2 . 2 2 . 3 7 Highest Loss Streak 12 | . 1 . 3 3 3 . . . 12 . 4 4 . 4 3 . 2 6 To Critical Strikes 2 | . . . . . . . . . 1 . . . . . . . . 1 Average Backups 6 | 2 7 7 6 5 7 6 6 6 5 6 8 4 4 3 7 8 7 6 Power . | . . . . . . 1 1 1 1 1 1 . . . . . . 1 Propulsion 1 | 1 1 1 . . 1 1 2 2 1 3 1 . . . . 1 1 1 Utility 2 | . . 1 2 . 1 2 3 3 1 1 2 3 3 2 4 3 2 1 Weapon 2 | . 4 4 3 3 3 1 . . . . 1 . . . 1 3 1 . Tool/Special . | . . . . . . . . . . . . . . . . . . . Unused Backups 22 | . 3 . 2 6 . 3 . . 1 . 3 . 1 . . 2 1 . Power 5 | . . . . 2 . . . . . . 1 . . . . 1 1 . Propulsion 6 | . 2 . . 2 . 1 . . . . 1 . . . . . . . Utility 6 | . . . 1 . . 1 . . 1 . 1 . 1 . . 1 . . Weapon 5 | . 1 . 1 2 . 1 . . . . . . . . . . . . Tool/Special . | . . . . . . . . . . . . . . . . . . . Average Slot Usage (%) 84 | . 99 100 87 87 96 94 92 92 81 92 85 67 38 58 87 93 89 67 Engine 5 | . 14 14 10 6 7 7 7 8 10 6 5 . . 1 . . . . Core 2 | . . . . 1 7 7 7 5 2 6 4 5 1 4 . . 1 5 Reactor 2 | . . . . . . . . . . . . . . . 7 11 8 3 Treads 12 | . 19 28 10 15 22 17 15 15 9 . . 5 . 4 11 11 11 8 Leg 1 | . . . . . . . . . 2 20 18 7 . . . . . . Wheel 1 | . 7 . 11 . . . . . . . . . . . . . . . Device 11 | . 11 3 . 17 14 15 15 15 5 11 13 13 7 15 12 18 7 14 Storage 6 | . 14 14 14 9 7 7 7 7 4 4 5 . . . 5 5 5 4 Processor 9 | . . . . 3 9 15 15 15 17 20 20 23 23 18 15 11 9 3 Hackware 1 | . . . . . . . . . 2 . . . . . . 1 8 9 Protection 5 | . 2 10 13 11 2 . . . 3 . . . 5 1 8 7 9 3 Energy Gun 8 | . 16 17 7 4 . . . . 3 18 11 6 . 3 5 5 11 7 Ballistic Gun 10 | . 11 10 17 18 23 23 23 23 13 . . 1 . . 12 17 9 1 Peak Build Rating 135 | 6 10 12 13 31 41 51 51 54 54 64 58 63 38 67 120 122 125 135 Average Rating 57 | 4 9 11 10 23 36 46 51 51 45 55 52 47 30 49 105 116 113 110 On Entrance 45 | . 6 10 12 4 31 40 51 51 54 43 58 24 27 38 62 120 116 109 Avg Prop Armor Cover (%) 11 | . 12 . 10 . . . . . . . . 10 . 8 . . . 17 Naked Turns . | . . . . . . . . . . . . . . . . . . . Heaviest Build 96 | 12 15 18 16 40 36 31 31 49 53 50 45 28 10 56 95 95 95 96 Greatest Support 108 | 32 40 40 40 42 62 90 90 90 90 45 45 36 12 62 103 108 108 107 Greatest Overweight (x) 4 | . 4 . 4 2 . . . . . 1 . 1 1 1 1 . . 2 Average Overweight (x) . | . . . . . . . . . . . . . . . . . . . Largest Inventory Capacity 10 | 8 8 8 8 8 8 8 8 8 8 10 10 5 5 10 10 10 10 10 Average Capacity 8 | 7 8 8 8 8 8 8 8 8 6 8 9 5 5 5 10 10 10 9 Most Carried 10 | 6 8 8 8 8 8 8 7 8 8 10 9 5 5 5 10 10 10 10 Average Carried 7 | 3 7 7 6 5 7 7 7 7 6 6 8 4 4 3 7 9 9 6 Final Capacity 10 | 8 8 8 8 8 8 8 8 8 5 10 5 5 5 10 10 10 10 5 Final Carried 10 | 6 8 8 7 7 8 7 7 8 5 9 5 5 3 5 9 10 10 4 Class Distribution -------------------- 40% | Mutant 29% | Scavenger-Tank 10% | Gunner 9% | Scavenger-Gunner 5% | Scavenger-Skirmisher Dominant Class ---------------- Mutant | -10/Materials Mutant | -10/Mines Mutant | -10/Subcaves Scavenger-Tank | -8/Materials Gunner | -7/Factory Gunner | -7/Waste Gunner | -7/Factory Gunner | -7/DSF Scavenger-Tank | -7/Garrison Scavenger-Gunner | -6/Factory Scavenger-Gunner | -6/Waste Mutant | -6/Factory Mutant | -5/Factory Mutant | -5/Extension Scavenger-Tank | -5/Cetus Scavenger-Tank | -5/Archives Scavenger-Tank | -5/Hub_04(d) Scavenger-Skirmisher | -4/Factory Resources | -11 -10 -10 -10 -8 -7 -7 -7 -7 -7 -6 -6 -6 -5 -5 -5 -5 -5 -4 ----------- Run | Yrd Mat Min Sub Mat Fac Was Fac DSF Gar Fac Was Fac Fac Ext Cet Arc Hub Fac Matter Collected 5342 | 250 195 85 153 621 388 126 . 52 551 30 . 211 2 332 676 426 882 362 Remotely . | . . . . . . . . . . . . . . . . . . . Salvage Created 7835 | . 464 152 258 595 482 . . 100 902 204 . 377 . 119 1070 615 1895 602 Parts 378 | . 18 16 20 35 23 . . 9 31 1 . 12 . 8 44 21 99 41 Haulers Intercepted . | . . . . . . . . . . . . . . . . . . . Recyclers Shooed . | . . . . . . . . . . . . . . . . . . . Parts Field Recycled . | . . . . . . . . . . . . . . . . . . . Retrieved Matter . | . . . . . . . . . . . . . . . . . . . Parts Self-Destructed 9 | . . . 9 . . . . . . . . . . . . . . . Prevented . | . . . . . . . . . . . . . . . . . . . Parts Restored . | . . . . . . . . . . . . . . . . . . . Kills | -11 -10 -10 -10 -8 -7 -7 -7 -7 -7 -6 -6 -6 -5 -5 -5 -5 -5 -4 ------- Run | Yrd Mat Min Sub Mat Fac Was Fac DSF Gar Fac Was Fac Fac Ext Cet Arc Hub Fac Combat Hostiles Destroyed 146 | . 11 10 9 15 8 . . 2 21 1 . 8 . 4 16 4 26 11 Guns 128 | . 10 10 9 15 8 . . 2 21 . . 6 . . 12 4 26 5 Cannons 12 | . . . . . . . . . . . . . . 4 3 . . 5 AOE 1 | . . . . . . . . . . . . . . . . . . 1 Classes Destroyed 15 | . 1 2 1 4 2 . . 2 . . . 1 . . 1 1 . . Worker 6 | . . . . 1 1 . . . . . . . . . . . 3 1 Builder 10 | . . . . 1 . . . . . . . . . . . . 6 3 Tunneler 1 | . . 1 . . . . . . . . . . . . . . . . Recycler 3 | . . . . . 1 . . . . 1 . . . . . . 1 . Operator 9 | . . . . . . . . . . . . . . . . 9 . . Watcher 3 | . . . . . . . . . . . . . . . 2 . 1 . Swarmer 31 | . . 10 4 3 . . . . 4 . . 2 . 3 . . 4 1 Grunt 56 | . 11 . 2 5 5 . . . 13 . . 1 . . 7 . 10 2 Brawler 2 | . . . . . 1 . . . . . . . . . . . 1 . Sentry 21 | . . . . 6 1 . . . 3 1 . 2 . 1 . 4 2 1 Specialist 1 | . . . . . . . . 1 . . . . . . . . . . Hunter 6 | . . . . 1 1 . . . 1 . . . . . 1 . 2 . Programmer 14 | . . . . . . . . . . . . 3 . . . . 5 6 Heavy 4 | . . . . . . . . 1 . . . . . . . . 2 1 Cetus Guard 8 | . . . . . . . . . . . . . . . 8 . . . Subdweller 3 | . . . 3 . . . . . . . . . . . . . . . Infiltrator 1 | . . . . . . . . . . . . . . . . . 1 . Best Kill Streak 12 | . 3 4 4 4 4 . . 1 7 2 . 2 . 3 5 2 12 4 Combat Bots Only 7 | . 3 3 4 3 4 . . 1 7 1 . 2 . 3 5 2 5 4 Max Kills in Single Turn 3 | . 1 2 2 2 2 . . 1 2 1 . 1 . 1 2 1 3 2 Gunslinging 1 | . . . . 1 . . . . 1 . . . . . . . . . Exploded 1 | . . . . . . . . . . . . . . . . . . 1 Melee . | . . . . . . . . . . . . . . . . . . . Uniques/NPCs Destroyed . | . . . . . . . . . . . . . . . . . . . Combat | -11 -10 -10 -10 -8 -7 -7 -7 -7 -7 -6 -6 -6 -5 -5 -5 -5 -5 -4 -------- Run | Yrd Mat Min Sub Mat Fac Was Fac DSF Gar Fac Was Fac Fac Ext Cet Arc Hub Fac Hostile Shots Fired 1654 | . 68 33 118 118 35 . . . 259 27 4 168 2 118 177 14 145 368 Missed 537 | . 16 2 51 38 11 . . . 57 11 1 72 . 55 63 3 37 120 Hits 1117 | . 52 31 67 80 24 . . . 202 16 3 96 2 63 114 11 108 248 Melee 5 | . . . . . 1 . . . . . 3 . . . . . 1 . Projectile 1112 | . 52 31 67 80 23 . . . 202 16 . 96 2 63 114 11 107 248 Critical Strikes 46 | . 3 . 1 1 . . . . 5 . 1 3 . 1 13 . 9 9 Part Disruptions 1 | . . . . . . . . . . . . . . . . . 1 . Damage Taken 19113 | . 677 296 849 1182 400 . . . 2765 120 134 1473 158 1224 2726 308 2329 4472 Core 3459 | . 144 16 70 128 13 . . . 503 26 34 367 158 563 164 . 111 1162 Absorbed by Shields . | . . . . . . . . . . . . . . . . . . . Reduced by Siege Mode 52 | . . . . . . . . . . . . . . . 5 . 18 29 Redirected to Shielding 21 | . . . . . . . . . . . . . . 21 . . . . Regen/Repaired (Parts) 109 | . . . . 70 . 39 . . . . . . . . . . . . Core Remaining (%) 43 | 100 . . 8 76 . . . . 26 . . 49 . . . . . . Volleys Fired 447 | . 44 16 35 45 22 . . 2 52 3 . 37 . 15 37 25 65 49 Largest 4 | . 2 2 2 3 3 . . 3 3 3 . 2 . 4 4 4 4 3 Hottest 303 | . 100 100 100 210 75 . . 91 141 225 . 150 . 272 278 185 303 233 Shots Fired 1131 | . 87 32 66 110 70 1 . 7 108 9 . 52 . 29 120 92 245 103 Gun 1038 | . 87 32 63 110 70 1 . 7 108 9 . 52 . 13 91 92 245 58 Cannon 88 | . . . . . . . . . . . . . . 16 29 . . 43 Launcher . | . . . . . . . . . . . . . . . . . . . Special 5 | . . . 3 . . . . . . . . . . . . . . 2 Kinetic 722 | . 37 13 48 93 70 1 . 7 96 . . 13 . 13 70 76 142 43 Thermal 361 | . 50 19 18 11 . . . . 12 9 . 39 . . 33 16 102 52 Explosive . | . . . . . . . . . . . . . . . . . . . Electromagnetic 46 | . . . . 6 . . . . . . . . . 16 17 . 1 6 Robot Hit Streak 26 | . 12 7 8 11 8 1 . 5 17 5 . 6 . 12 15 8 26 11 Robot Miss Streak 6 | . 2 6 2 3 3 1 . 1 5 1 . 3 . 4 4 4 4 4 Penetration Max 2 | . . . . . . . . . . . . . . . 1 . 2 1 Secondary Targets 23 | . 2 . 2 2 2 . . . 5 . . . . . 5 . 5 . Max Gunslinging Chain 1 | . 1 . 1 1 1 . . . 1 . . . . . 1 . 1 . Shots Hit Robots 770 | . 69 15 47 72 51 1 . 5 87 8 . 37 . 18 75 51 163 71 Core Hits 350 | . 29 11 17 28 23 1 . 3 49 1 . 15 . 9 41 23 74 26 Critical Kills 16 | . . . 1 . 1 . . . 3 . . . . . 5 1 5 . Critical Parts Destroyed 15 | . . . . . 1 . . . 5 . . 1 . . 2 2 4 . Critical Strikes 52 | . 4 . 4 . 2 . . . 8 4 . 5 . . 9 3 9 4 Burn 17 | . 4 . 3 . . . . . . 4 . 4 . . 1 . . 1 Destroy 31 | . . . 1 . 2 . . . 8 . . 1 . . 7 3 9 . Blast 4 | . . . . . . . . . . . . . . . 1 . . 3 Melee Attacks . | . . . . . . . . . . . . . . . . . . . Impact . | . . . . . . . . . . . . . . . . . . . Slashing . | . . . . . . . . . . . . . . . . . . . Piercing . | . . . . . . . . . . . . . . . . . . . Sneak Attacks . | . . . . . . . . . . . . . . . . . . . Combat Hostiles . | . . . . . . . . . . . . . . . . . . . Follow-up Attacks . | . . . . . . . . . . . . . . . . . . . Damage Inflicted 19757 | . 742 221 621 1425 878 30 . 110 1768 191 . 823 . 510 2642 1904 5358 2534 Guns 16553 | . 742 221 621 1422 875 30 . 110 1768 191 . 823 . 93 1598 1660 5318 1081 Cannons 2545 | . . . . . . . . . . . . . . 417 872 . . 1256 Explosions 336 | . . . . . . . . . . . . . . . 172 . . 164 Melee . | . . . . . . . . . . . . . . . . . . . Ramming 323 | . . . . 3 3 . . . . . . . . . . 244 40 33 Kinetic 12569 | . 252 83 461 1177 875 30 . 110 1514 . . 191 . 417 1628 1388 3170 1273 Thermal 6001 | . 490 138 160 174 . . . . 254 191 . 632 . . 616 272 2144 930 Explosive 164 | . . . . . . . . . . . . . . . . . . 164 Electromagnetic 700 | . . . . 71 . . . . . . . . . 93 398 . 4 134 Impact . | . . . . . . . . . . . . . . . . . . . Slashing . | . . . . . . . . . . . . . . . . . . . Piercing . | . . . . . . . . . . . . . . . . . . . Highest Corruption 8 | . . . . . 5 5 5 5 5 . 6 8 . 5 8 8 7 7 Average Corruption 5 | . . . . . 5 5 5 5 5 . 6 6 . 5 7 6 4 3 Corruption Purged 12 | . . . . . . . . . . . . . . . . 8 . 4 Corruption Blocked . | . . . . . . . . . . . . . . . . . . . Effects 157 | . . . . . 11 14 . 5 18 . 3 15 . 9 32 19 14 17 Message Errors 32 | . . . . . 1 2 . . 5 . 2 4 . 1 9 2 2 4 Matter Fused 40 | . . . . . 3 5 . . 3 . . 4 . 4 10 3 6 2 Heat Flow Errors 17 | . . . . . 2 2 . . 1 . . 2 . 1 5 1 2 1 Energy Discharges 21 | . . . . . . 1 . 2 2 . 1 1 . 2 4 4 2 2 Parts Rejected 3 | . . . . . . . . . . . . . . . 1 . . 2 Parts Fused 1 | . . . . . . . . . 1 . . . . . . . . . Data Loss (minor) 15 | . . . . . 1 3 . . 2 . . 2 . 1 . 4 1 1 Data Loss (major) 6 | . . . . . . . . 1 1 . . 1 . . 1 1 . 1 Misfires 14 | . . . . . 4 1 . 1 2 . . . . . 1 2 1 2 Alerts 4 | . . . . . . . . 1 . . . . . . 1 . . 2 Weapon Failures 4 | . . . . . . . . . 1 . . 1 . . . 2 . . Overload Shots . | . . . . . . . . . . . . . . . . . . . Overflow Damage 227 | . . . . . . . . . . . . . . 8 19 39 . 161 Projectiles 188 | . . . . . . . . . . . . . . 8 19 . . 161 Explosions . | . . . . . . . . . . . . . . . . . . . Melee 39 | . . . . . . . . . . . . . . . . 39 . . Knockbacks 16 | . . . . . 1 . . . . . . . . 1 . 3 . 11 Impact 4 | . . . . . 1 . . . . . . . . . . 3 . . Kinetic 10 | . . . . . . . . . . . . . . 1 . . . 9 Secondary 2 | . . . . . . . . . . . . . . . . . . 2 Self-Inflicted Damage 5 | . . . . . . . . . . . . . . . . . . 5 Shots . | . . . . . . . . . . . . . . . . . . . Rammed 32 | . . 1 . 1 2 . . . . . . . . . . 15 4 9 Targets Rammed 35 | . . 1 . 2 2 . . . . . . . . . . 17 4 9 Kicked . | . . . . . . . . . . . . . . . . . . . Crushed 3 | . . . . 1 . . . . . . . . . . . 2 . . Highest Temperature 714 | . 72 168 9 273 145 264 . 714 492 181 . 195 . 139 426 40 497 312 Average Temperature 118 | . 21 60 4 101 34 134 . 251 193 115 . 62 . 46 107 19 187 113 Received Heat Transfer 3862 | . 435 . 312 549 162 . . . 1071 36 . 255 . 108 456 27 216 235 Effects 31 | . . . . . . . . 7 14 . . . . . . . 10 . Shutdowns 10 | . . . . . . . . 2 5 . . . . . . . 3 . Energy Bleed 5 | . . . . . . . . 2 1 . . . . . . . 2 . Interference 12 | . . . . . . . . 2 6 . . . . . . . 4 . Damage (minor) 2 | . . . . . . . . 1 . . . . . . . . 1 . Damage (major) 2 | . . . . . . . . . 2 . . . . . . . . . Siege Activations 12 | . . . . . . . . . . . . . . . 1 1 4 6 Total Turns 201 | . . . . . . . . . . . . . . . 7 1 74 119 Longest Duration 42 | . . . . . . . . . . . . . . . 7 1 31 42 Martial Activations . | . . . . . . . . . . . . . . . . . . . Shielding Activations . | . . . . . . . . . . . . . . . . . . . Robots Disrupted 1 | . . . . . . . . . . . . . . 1 . . . . Combat Hostiles 1 | . . . . . . . . . . . . . . 1 . . . . Robots Corrupted 5 | . . . . . . . . . . . . . . . 1 4 . . Combat Hostiles 1 | . . . . . . . . . . . . . . . 1 . . . Parts Fried 3 | . . . . . . . . . . . . . . . 2 1 . . Impact Corruptions 5 | . . . . . . . . . . . . . . . . 5 . . Robots Melted 5 | . 1 . . . . . . . . 2 . 2 . . . . . . Combat Hostiles 4 | . 1 . . . . . . . . 1 . 2 . . . . . . Parts Melted 27 | . 3 1 2 1 . . . . 1 6 . 7 . . . . 3 3 Heat Transferred 10898 | . 1739 407 691 296 . . . . 575 629 . 1490 . . 927 370 2479 1295 Parts Sabotaged . | . . . . . . . . . . . . . . . . . . . Parts Stolen . | . . . . . . . . . . . . . . . . . . . Parts Stripped . | . . . . . . . . . . . . . . . . . . . Power Chain Reactions 2 | . . . . . . . . . . . . . . . 2 . . . Alert | -11 -10 -10 -10 -8 -7 -7 -7 -7 -7 -6 -6 -6 -5 -5 -5 -5 -5 -4 ------- Run | Yrd Mat Min Sub Mat Fac Was Fac DSF Gar Fac Was Fac Fac Ext Cet Arc Hub Fac Maximum Alert Level 3 | . . . . . . . . 2 3 2 . . . . . 1 2 2 Low Security (%) 78 | 100 100 100 . 100 100 100 100 46 . 16 100 100 100 100 100 98 16 68 Level 1 9 | . . . . . . . . 2 7 80 . . . . . 1 18 27 Level 2 10 | . . . . . . . . 51 42 3 . . . . . . 64 4 Level 3 2 | . . . . . . . . . 49 . . . . . . . . . Level 4 . | . . . . . . . . . . . . . . . . . . . Level 5 . | . . . . . . . . . . . . . . . . . . . High Security . | . . . . . . . . . . . . . . . . . . . Max Security . | . . . . . . . . . . . . . . . . . . . Sterilizations 1 | . . . . . . . . 1 . . . . . . . . . . Peak Influence 767 | . 90 75 . 75 71 10 . 413 767 402 54 134 63 92 125 200 543 561 Initial 402 | . . . . . . 10 . . 309 402 54 . 58 . . 42 . 241 Average 124 | . 15 20 . 28 25 . . 243 612 285 23 44 29 12 50 53 375 169 Influence Increases 6361 | . 324 250 265 419 226 . . 473 758 39 . 380 15 278 486 275 987 1186 Destroy 0b10 Robot/C 3120 | . 220 200 120 300 160 . . 200 520 20 . 160 . 80 320 80 520 220 Destroy 0b10 Robot/NC 160 | . . 5 . 10 10 . . . . 5 . . . . 10 45 55 20 Destroy Leader 572 | . 60 30 10 90 30 . . 30 30 10 . 50 . . 30 . 142 60 Allied During Kill 346 | . . . . . . . . 228 113 . . . . 5 . . . . Successful Hack 136 | . 28 . . . 10 . . . . 4 . 5 . 7 14 . 34 34 Disable Machine 270 | . . . . . . . . 15 . . . 15 . . 30 90 75 45 Anti-Garrison Action 50 | . . . . . . . . . 50 . . . . . . . . . Destroy Structure 252 | . 1 . . 4 1 . . . . . . . . 6 22 60 116 42 Partial Spotted 30 | . . . . . . . . . . . . . . 15 . . . 15 Lose Combat Pursuer 1125 | . 15 15 135 15 15 . . . 45 . . 150 15 165 60 . 45 450 Active Sensor Use 300 | . . . . . . . . . . . . . . . . . . 300 Influence Decreases 5844 | . 324 250 265 416 199 30 . 60 404 651 155 261 134 278 379 382 494 1162 Entered New Map 971 | . . . . . 3 20 . . 104 365 101 . 61 . . 65 . 252 Time Decay 3711 | . 294 250 225 366 176 10 . . . 286 34 186 73 213 327 317 444 510 Search Patrol Dispatched 200 | . . . . . . . . . . . . . . . . . . 200 Lost Part 720 | . 30 . 40 50 20 . . . 140 . . 75 . 65 50 . 50 200 Lost Ally 242 | . . . . . . . . 60 160 . 20 . . . 2 . . . Squads Dispatched 32 | . 2 . . 1 . . . 2 . . . 5 . . 1 . 15 6 Investigation 4 | . . . . . . . . . . . . . . . 1 . . 3 Extermination 7 | . . . . . . . . . . . . 1 . . . . 3 3 Reinforcement 18 | . 2 . . 1 . . . 2 . . . 4 . . . . 9 . Assault . | . . . . . . . . . . . . . . . . . . . Garrison 3 | . . . . . . . . . . . . . . . . . 3 . Intercept . | . . . . . . . . . . . . . . . . . . . Searches Triggered 2 | . . . . . . . . . . . . . . . . . . 2 Construction Impeded . | . . . . . . . . . . . . . . . . . . . Haulers Reinforced 1 | . . . . . . . . . . . . . . . . . 1 . Active Scanning Responses 3 | . . . . . . . . . . . . . . . . . . 3 Cargo Convoy Interrupts . | . . . . . . . . . . . . . . . . . . . Stealth | -11 -10 -10 -10 -8 -7 -7 -7 -7 -7 -6 -6 -6 -5 -5 -5 -5 -5 -4 --------- Run | Yrd Mat Min Sub Mat Fac Was Fac DSF Gar Fac Was Fac Fac Ext Cet Arc Hub Fac Distress Signals 17 | . 2 . . 5 1 . . . . . . 2 . 1 2 . 3 1 Communications Jammed 55 | . . . . . . . . . . . . . . . . . . 55 Distress Signals 50 | . . . . . . . . . . . . . . . . . . 50 Times Spotted 323 | . 25 11 17 33 12 . . 9 30 6 4 25 2 17 21 25 39 47 Peak Tracking Total 9 | . 5 3 6 8 4 . . 3 8 3 4 6 1 9 5 1 5 9 Tactical Retreats 33 | . 1 1 3 1 1 . . . 1 . . 4 1 5 3 . 3 9 Traps | -11 -10 -10 -10 -8 -7 -7 -7 -7 -7 -6 -6 -6 -5 -5 -5 -5 -5 -4 ------- Run | Yrd Mat Min Sub Mat Fac Was Fac DSF Gar Fac Was Fac Fac Ext Cet Arc Hub Fac Traps Triggered 14 | . 4 1 1 . 1 . . . 4 1 . 1 . . . . . 1 Indirectly . | . . . . . . . . . . . . . . . . . . . Trap Hack Attempts . | . . . . . . . . . . . . . . . . . . . Triggered . | . . . . . . . . . . . . . . . . . . . Disarmed . | . . . . . . . . . . . . . . . . . . . Reprogrammed . | . . . . . . . . . . . . . . . . . . . Reused . | . . . . . . . . . . . . . . . . . . . Traps Extracted . | . . . . . . . . . . . . . . . . . . . Installed . | . . . . . . . . . . . . . . . . . . . Triggered . | . . . . . . . . . . . . . . . . . . . Machines | -11 -10 -10 -10 -8 -7 -7 -7 -7 -7 -6 -6 -6 -5 -5 -5 -5 -5 -4 ---------- Run | Yrd Mat Min Sub Mat Fac Was Fac DSF Gar Fac Was Fac Fac Ext Cet Arc Hub Fac Machines Disabled 21 | . . . . . . . . 1 . . . 1 . . 5 6 5 3 Max in Single Turn 2 | . . . . . . . . . . . . 1 . . 2 2 1 1 Garrison Access 3 | . . . . 1 . . . . . . . . . . . . 1 1 Machines Repaired . | . . . . . . . . . . . . . . . . . . . Machines Dismantled . | . . . . . . . . . . . . . . . . . . . Machines Sabotaged . | . . . . . . . . . . . . . . . . . . . Overloaded Fab Kills . | . . . . . . . . . . . . . . . . . . . Hacking | -11 -10 -10 -10 -8 -7 -7 -7 -7 -7 -6 -6 -6 -5 -5 -5 -5 -5 -4 --------- Run | Yrd Mat Min Sub Mat Fac Was Fac DSF Gar Fac Was Fac Fac Ext Cet Arc Hub Fac Machines Accessed 61 | . 9 2 . 5 2 . 1 . 2 5 . 5 2 8 2 1 7 10 Terminals 44 | . 6 1 . 3 1 . 1 . 2 4 . 2 1 8 2 . 6 7 Fabricators 2 | . . . . . 1 . . . . . . . . . . . . 1 Repair Stations 5 | . 1 . . 1 . . . . . 1 . 1 . . . . . 1 Recycling Units 5 | . 2 . . . . . . . . . . 2 1 . . . . . Scanalyzers . | . . . . . . . . . . . . . . . . . . . Garrison Access 3 | . . . . 1 . . . . . . . . . . . . 1 1 Total Hacks 160 | . 26 4 . 11 3 . 2 . 4 8 . 7 2 16 12 25 15 25 Successful 85 | . 12 2 . 7 2 . 1 . 1 5 . 3 . 5 3 25 8 11 Failed 75 | . 14 2 . 4 1 . 1 . 3 3 . 4 2 11 9 . 7 14 Catastrophic 17 | . 2 . . . . . . . 2 1 . 1 1 3 1 . . 6 Database Lockouts . | . . . . . . . . . . . . . . . . . . . Manual . | . . . . . . . . . . . . . . . . . . . Terminals 105 | . 14 3 . 7 2 . 2 . 4 7 . 2 1 16 12 . 14 21 Fabricators 3 | . . . . . 1 . . . . . . . . . . . . 2 Repair Stations 7 | . 1 . . 2 . . . . . 1 . 2 . . . . . 1 Recycling Units 15 | . 11 . . . . . . . . . . 3 1 . . . . . Scanalyzers . | . . . . . . . . . . . . . . . . . . . Garrison Access 4 | . . . . 2 . . . . . . . . . . . . 1 1 Terminal Hacks 72 | . 8 2 . 4 1 . 1 . 1 5 . 1 . 5 3 25 7 9 Record 35 | . 1 . . . . . . . . 1 . . . 1 3 25 . 4 Prototype ID Bank 1 | . . . . 1 . . . . . . . . . . . . . . Open Door 3 | . . 1 . . . . . . 1 . . . . 1 . . . . Open DSF 5 | . . . . . . . 1 . . 1 . 1 . . . . . 2 Branch Access Points 2 | . 1 . . 1 . . . . . . . . . . . . . . Emergency Access Points 3 | . . . . . . . . . . . . . . . . . 2 1 Terminal Index 1 | . . . . . . . . . . . . . . . . . . 1 Scanalyzer Index 1 | . . . . . . . . . . . . . . 1 . . . . Locate Traps 5 | . . . . . . . . . . 2 . . . . . . 3 . Dispatch Records 3 | . 2 . . . . . . . . . . . . 1 . . . . Maintenance Status 1 | . . . . 1 . . . . . . . . . . . . . . Transport Status 2 | . 1 . . . . . . . . 1 . . . . . . . . Reinforcement Status 1 | . . . . . . . . . . . . . . . . . . 1 Registered Components 1 | . 1 . . . . . . . . . . . . . . . . . Zone Layout 8 | . 2 1 . 1 1 . . . . . . . . 1 . . 2 . Fabricator Hacks 2 | . . . . . 1 . . . . . . . . . . . . 1 Build 2 | . . . . . 1 . . . . . . . . . . . . 1 Repair Station Hacks 4 | . 1 . . 2 . . . . . . . 1 . . . . . . Scan Component 1 | . . . . 1 . . . . . . . . . . . . . . Repair 1 | . . . . 1 . . . . . . . . . . . . . . Refit 2 | . 1 . . . . . . . . . . 1 . . . . . . Recycling Unit Hacks 4 | . 3 . . . . . . . . . . 1 . . . . . . Retrieve Components 4 | . 3 . . . . . . . . . . 1 . . . . . . Scanalyzer . | . . . . . . . . . . . . . . . . . . . Garrison Access Hacks 3 | . . . . 1 . . . . . . . . . . . . 1 1 Seal Access 3 | . . . . 1 . . . . . . . . . . . . 1 1 Unauthorized Hacks . | . . . . . . . . . . . . . . . . . . . Terminals . | . . . . . . . . . . . . . . . . . . . Fabricators . | . . . . . . . . . . . . . . . . . . . Repair Stations . | . . . . . . . . . . . . . . . . . . . Recycling Units . | . . . . . . . . . . . . . . . . . . . Scanalyzers . | . . . . . . . . . . . . . . . . . . . Garrison Access . | . . . . . . . . . . . . . . . . . . . Data Cores Recovered . | . . . . . . . . . . . . . . . . . . . Used . | . . . . . . . . . . . . . . . . . . . Hacking Detections 48 | . 8 1 . 3 1 . . . 2 3 . 4 2 7 2 . 6 9 Full Trace Events 2 | . . . . . . . . . 1 . . . . . 1 . . . Feedback Events . | . . . . . . . . . . . . . . . . . . . Feedback Blocked . | . . . . . . . . . . . . . . . . . . . Robot Schematics Acquired . | . . . . . . . . . . . . . . . . . . . Robots Built . | . . . . . . . . . . . . . . . . . . . Authchips . | . . . . . . . . . . . . . . . . . . . Time 187 | . . . . . . . . . . . . . . . . . . 187 Total Robot Build Rating . | . . . . . . . . . . . . . . . . . . . Part Schematics Acquired . | . . . . . . . . . . . . . . . . . . . Parts Built 2 | . . . . . 2 . . . . . . . . . . . . . Authchips . | . . . . . . . . . . . . . . . . . . . Time 117 | . . . . . 117 . . . . . . . . . . . . . Total Part Build Rating 14 | . . . . . 14 . . . . . . . . . . . . . Part Studies Acquired . | . . . . . . . . . . . . . . . . . . . Parts Repaired 1 | . . . . 1 . . . . . . . . . . . . . . Time 32 | . . . . 32 . . . . . . . . . . . . . . Parts Recycled . | . . . . . . . . . . . . . . . . . . . Recycled Matter . | . . . . . . . . . . . . . . . . . . . Retrieved Matter . | . . . . . . . . . . . . . . . . . . . Retrieved Components 7 | . 3 . . . . . . . . . . 4 . . . . . . Parts Scanalyzed . | . . . . . . . . . . . . . . . . . . . Part Schematics Acquired . | . . . . . . . . . . . . . . . . . . . Parts Damaged . | . . . . . . . . . . . . . . . . . . . Bothacking | -11 -10 -10 -10 -8 -7 -7 -7 -7 -7 -6 -6 -6 -5 -5 -5 -5 -5 -4 ------------ Run | Yrd Mat Min Sub Mat Fac Was Fac DSF Gar Fac Was Fac Fac Ext Cet Arc Hub Fac Used RIF Installer . | . . . . . . . . . . . . . . . . . . . Robots Hacked 1 | . . . . . . . . . . . . . . . . . . 1 Non-combat . | . . . . . . . . . . . . . . . . . . . Combat 1 | . . . . . . . . . . . . . . . . . . 1 Robot Hacks Applied 2 | . . . . . . . . . . . . . . . . . . 2 parse_system 2 | . . . . . . . . . . . . . . . . . . 2 Relay Couplers Released . | . . . . . . . . . . . . . . . . . . . Fabnet Peak Effective % . | . . . . . . . . . . . . . . . . . . . Robots Rewired 4 | . . . . . . . . . 3 . . . . 1 . . . . Allies Hacked . | . . . . . . . . . . . . . . . . . . . Hacks Repelled . | . . . . . . . . . . . . . . . . . . . Allies | -11 -10 -10 -10 -8 -7 -7 -7 -7 -7 -6 -6 -6 -5 -5 -5 -5 -5 -4 -------- Run | Yrd Mat Min Sub Mat Fac Was Fac DSF Gar Fac Was Fac Fac Ext Cet Arc Hub Fac Total Allies 27 | . . . . . . 20 . . 3 . 1 . . 3 . . . . Largest Group 20 | . . . . . . 20 20 20 7 . 1 . . 3 3 . . . Highest-Rated Group 455 | . . . . . . 455 455 455 209 . 31 . . 100 100 . . . Highest-Rated Ally 49 | . . . . . . 31 31 31 31 . 31 . . 49 49 . . . Initial Warlord ECA Mod 10 | . . . . . . . . . 10 9 9 9 8 8 8 8 8 7 Total Orders . | . . . . . . . . . . . . . . . . . . . Ally Attacks 126 | . . . . . . . . 64 43 . 5 . . 6 8 . . . Total Damage 1851 | . . . . . . . . 734 691 . 104 . . 167 155 . . . Kills 15 | . . . . . . . . 10 5 . . . . . . . . . Allies Corrupted . | . . . . . . . . . . . . . . . . . . . Allies Melted . | . . . . . . . . . . . . . . . . . . . Intel | -11 -10 -10 -10 -8 -7 -7 -7 -7 -7 -6 -6 -6 -5 -5 -5 -5 -5 -4 ------- Run | Yrd Mat Min Sub Mat Fac Was Fac DSF Gar Fac Was Fac Fac Ext Cet Arc Hub Fac Active Infowar (turns) 4752 | . . . 34 1014 . . . . . 298 107 698 191 325 . . 848 1237 Optics 1899 | . . . 34 1014 . . . . . . . . . . . . 848 3 Sensors 539 | . . . . . . . . . . . . 23 191 325 . . . . A.S.S. 1155 | . . . . . . . . . . . . . . . . . . 1155 Triangulation 1080 | . . . . . . . . . . 298 107 675 . . . . . . Spoofing 7 | . . . . . . . . . . . . . . . . . 7 . Jamming 939 | . . . . . . . . . . . . . 8 81 . . . 850 ECM 84 | . . . . . . . . . . . . . . . . . . 84 Robot Analysis Total . | . . . . . . . . . . . . . . . . . . . Derelict Logs Recovered 3 | . . 1 2 . . . . . . . . . . . . . . . Drone Launches . | . . . . . . . . . . . . . . . . . . . Drone Recoveries . | . . . . . . . . . . . . . . . . . . . Exploration | -11 -10 -10 -10 -8 -7 -7 -7 -7 -7 -6 -6 -6 -5 -5 -5 -5 -5 -4 ------------- Run | Yrd Mat Min Sub Mat Fac Was Fac DSF Gar Fac Was Fac Fac Ext Cet Arc Hub Fac Turns Passed 14261 | 61 1302 1133 986 1088 588 396 5 250 718 624 107 728 191 1311 908 1187 1283 1395 Spaces Moved 8705 | 47 808 659 670 515 268 225 4 142 482 394 102 512 308 1112 438 608 568 843 Core 1046 | 6 8 . 28 44 . . . . 4 . 24 97 308 363 . . . 164 Treads 5262 | . 432 659 173 471 268 225 4 142 168 . . 165 . 446 438 608 568 495 Legs 796 | . . . . . . . . . 68 394 78 250 . 6 . . . . Wheels 908 | 41 368 . 469 . . . . . . . . . . . . . . 30 Hover 154 | . . . . . . . . . . . . . . . . . . 154 Flight 539 | . . . . . . . . . 242 . . . . 297 . . . . Fastest Speed 29 | 50 100 160 100 145 158 158 165 165 29 120 50 50 50 45 160 160 160 40 Average Speed 131 | 93 133 160 124 156 158 162 165 165 89 134 103 119 50 104 160 160 163 118 Slowest Speed 250 | 100 250 160 250 225 158 165 165 165 165 190 120 190 100 240 240 160 165 241 Overloaded Moves . | . . . . . . . . . . . . . . . . . . . Propulsion Burnouts . | . . . . . . . . . . . . . . . . . . . Robots Hopped 6 | . . . . . . . . . . . . . . 6 . . . . Potential Cave-ins . | . . . . . . . . . . . . . . . . . . . Cave-ins Triggered . | . . . . . . . . . . . . . . . . . . . Exploration Rate (%) 57 | 4 98 99 57 51 10 95 . 95 53 12 76 20 8 90 78 98 59 30 Regions Visited 18 Branch Regions 6 Pre-discovered Areas 2 | . . . 2 . . . . . . . . . . . . . . . Known Exits Taken 8 | . 1 . . . . . 1 . . . . 1 1 1 1 1 1 . Unknown Exits Taken 4 | 1 . 1 1 1 . . . . . . . . . . . . . . Scrap Searched 3 | . . 1 2 . . . . . . . . . . . . . . . Spaces Dug . | . . . . . . . . . . . . . . . . . . . Terrain Destroyed 131 | . . . . 3 . . . . . . . . . 3 8 36 60 21 Melee . | . . . . . . . . . . . . . . . . . . . Projectile 127 | . . . . 3 . . . . . . . . . 3 8 36 60 17 AOE 4 | . . . . . . . . . . . . . . . . . . 4 Terrain Rammed . | . . . . . . . . . . . . . . . . . . . Walls Destroyed . | . . . . . . . . . . . . . . . . . . . Machines Disabled . | . . . . . . . . . . . . . . . . . . . Actions | -11 -10 -10 -10 -8 -7 -7 -7 -7 -7 -6 -6 -6 -5 -5 -5 -5 -5 -4 --------- Run | Yrd Mat Min Sub Mat Fac Was Fac DSF Gar Fac Was Fac Fac Ext Cet Arc Hub Fac Total 10642 | 64 952 706 757 714 392 259 3 155 682 486 103 575 344 1236 561 753 765 1135 Wait 711 | . 60 20 19 56 78 5 . 2 4 56 1 2 27 64 16 74 66 161 Move 8677 | 46 807 658 669 514 268 224 3 141 481 394 101 511 307 1099 437 607 567 843 Hop 6 | . . . . . . . . . . . . . . 6 . . . . Pick Up 251 | 12 19 4 9 38 10 8 . 4 19 15 . 10 4 18 28 11 20 22 Fast Attach . | . . . . . . . . . . . . . . . . . . . Attach 178 | 6 11 . 11 19 5 2 . . 21 5 . 11 3 22 17 4 14 27 Detach 28 | . . . 5 . . 3 . . 4 2 . 1 . 6 2 . . 5 Swap 95 | . 5 3 4 19 3 6 . 3 6 3 . 2 . 1 13 6 11 10 Drop 123 | . 6 4 5 21 4 11 . 3 8 8 1 1 3 1 11 9 18 9 Fire 447 | . 44 16 35 45 22 . . 2 52 3 . 37 . 15 37 25 65 49 Melee . | . . . . . . . . . . . . . . . . . . . Ram 7 | . . . . . . . . . . . . . . . . . . 7 Kick . | . . . . . . . . . . . . . . . . . . . Crush 28 | . . 1 . 2 2 . . . . . . . . . . 17 4 2 Escape Stasis 60 | . . . . . . . . . 60 . . . . . . . . . Rewire 31 | . . . . . . . . . 27 . . . . 4 . . . . Trap . | . . . . . . . . . . . . . . . . . . . Miscellaneous . | . . . . . . . . . . . . . . . . . . . Route ------- -11/Scrapyard -10/Materials (discovered 3 exits: [*Mat x2] / *Min) -10/Mines (discovered 3 exits: [*Mat x2] / [*Sub]) -10/Subcaves (discovered 2 exits: *Mat / [*Rec]) -8/Materials -7/Factory -7/Waste -7/Factory -7/DSF -7/Garrison -6/Factory -6/Waste -6/Factory -5/Factory -5/Extension (discovered 2 exits: *Fac / *Cet) -5/Cetus (discovered 3 exits: *Fac x2 / *Arc) -5/Archives (discovered 3 exits: *Fac / *Hub x2) -5/Hub_04(d) (discovered 3 exits: *Fac x3) -4/Factory (discovered 1 exit: [*Res]) History --------- Turn | Location | Event 35 | -11/Scrapyard | Discovered new exit (range 14) 62 | -11/Scrapyard | Entered Materials 302 | -10/Materials | Build established: Mutant 373 | -10/Materials | Discovered new exit (range 8) 554 | -10/Materials | Discovered new exit (range 16) 564 | -10/Materials | Identified exit to Mines 603 | -10/Materials | Core integrity fell below 50% 889 | -10/Materials | Discovered new exit (range 4) 1364 | -10/Materials | Entered Mines 1572 | -10/Mines | Discovered new exit (range 6) 1623 | -10/Mines | Met a Derelict who couldn't figure out how to use a Trap Extractor 1748 | -10/Mines | Learned Materials emergency access door positions 1809 | -10/Mines | Discovered new exit (range 10) 2262 | -10/Mines | Discovered new exit (range 11) 2497 | -10/Mines | Entered Subcaves 2554 | -10/Subcaves | Discovered new exit (range 10) 2565 | -10/Subcaves | Learned location of Zion (-6) 2938 | -10/Subcaves | Shifting Twisted Machinery released Scrap Shield 3022 | -10/Subcaves | Met a Zionite searching for "candidates" 3034 | -10/Subcaves | Lost 3 parts (1p1n1w) 3052 | -10/Subcaves | A swath of the cavern ceiling suddenly collapsed 3232 | -10/Subcaves | Core integrity fell below 20% 3274 | -10/Subcaves | Lost 3 parts (1p1u1w) 3307 | -10/Subcaves | Shifting Twisted Machinery released Battle Cannon 3356 | -10/Subcaves | Shifting Twisted Machinery released Battle Rifle 3445 | -10/Subcaves | Learned Materials stockpile data 3445 | -10/Subcaves | Discovered new exit (range 12) 3483 | -10/Subcaves | Entered Materials 3483 | -8/Materials | Evolved 4 slots: Utility x3, Weapon x1 3679 | -8/Materials | Repaired Sub. Machine Gun 3766 | -8/Materials | Lost 3 parts (1p1u1w) 4499 | -8/Materials | Build established: Scavenger-Gunner 4566 | -8/Materials | Discovered new exit (range 4) 4571 | -8/Materials | Entered Factory 4571 | -7/Factory | Evolved 2 slots: Power x1, Propulsion x1 4767 | -7/Factory | Lost 3 parts (3u) 4894 | -7/Factory | Build established: Gunner 4956 | -7/Factory | Fabricated Adv. Target Analyzer (x2) 5159 | -7/Factory | Sucked down chute 5159 | -7/Factory | Entered Waste 5160 | -7/Waste | Joined by Warlord forces that had cleared the area 5374 | -7/Waste | Discovered new exit (range 13) 5555 | -7/Waste | Entered Factory 5555 | -7/Factory | Accompanied by 20 allies 5560 | -7/Factory | Identified exit to DSF 5560 | -7/Factory | Entered DSF 5560 | -7/DSF | Accompanied by 20 allies 5592 | -7/DSF | Additional patrols routed to DSF 5638 | -7/DSF | Discovered new exit (range 15) 5652 | -7/DSF | Lost 5 allies 5686 | -7/DSF | Sterilization system engaged 5706 | -7/DSF | Ambient heat levels rising (+10) 5721 | -7/DSF | Ambient heat levels rising (+10) 5736 | -7/DSF | Ambient heat levels rising (+10) 5751 | -7/DSF | Ambient heat levels rising (+10) 5766 | -7/DSF | Ambient heat levels rising (+10) 5781 | -7/DSF | Ambient heat levels rising (+10) 5796 | -7/DSF | Ambient heat levels rising (+10) 5810 | -7/DSF | Entered Garrison 5810 | -7/Garrison | Accompanied by 5 allies 5826 | -7/Garrison | Triggered checkpoint 5839 | -7/Garrison | Lost 4 allies 6120 | -7/Garrison | Lost 7 allies 6213 | -7/Garrison | Build established: Scavenger-Tank 6216 | -7/Garrison | Triggered checkpoint 6271 | -7/Garrison | Core integrity fell below 50% 6305 | -7/Garrison | Lost 12 parts (3n4u5w) 6308 | -7/Garrison | Destroyed 7 combat bots 6349 | -7/Garrison | Discovered new exit (range 14) 6412 | -7/Garrison | Triggered checkpoint 6527 | -7/Garrison | Identified exit to Factory 6528 | -7/Garrison | Entered Factory 6528 | -6/Factory | Evolved 2 slots: Utility x1, Weapon x1 6824 | -6/Factory | Build established: Scavenger-Gunner 7152 | -6/Factory | Sucked down chute 7152 | -6/Factory | Entered Waste 7153 | -6/Waste | Met a frightened Derelict 7167 | -6/Waste | EMP discharged 7192 | -6/Waste | Spotted C-40 Crusher 7212 | -6/Waste | Spotted C-40 Crusher 7226 | -6/Waste | Spotted C-40 Crusher 7229 | -6/Waste | Spotted C-40 Crusher 7234 | -6/Waste | Spotted C-40 Crusher 7237 | -6/Waste | Crushed by Compactor (1 part destroyed, 1 dropped) 7245 | -6/Waste | Crushed by Compactor (1 part destroyed, 1 dropped) 7246 | -6/Waste | Crushed by Compactor (1 part destroyed, 2 dropped) 7250 | -6/Waste | Discovered new exit (range 16) 7253 | -6/Waste | Spotted C-40 Crusher 7259 | -6/Waste | Identified exit to Factory 7259 | -6/Waste | Entered Factory 7277 | -6/Factory | Lost 4 parts (1p2n1w) 7531 | -6/Factory | Build established: Mutant 7945 | -6/Factory | Core integrity fell below 50% 7966 | -6/Factory | Lost 4 parts (2n1u1w) 7971 | -6/Factory | Discovered new exit (range 15) 7986 | -6/Factory | Identified exit to Factory 7987 | -6/Factory | Entered another Factory area 7987 | -5/Factory | Evolved 2 slots: Utility x2 8153 | -5/Factory | Discovered new exit (range 16) 8162 | -5/Factory | Identified exit to Extension 8178 | -5/Factory | Entered Extension 8237 | -5/Extension | Spotted B-75 Beast 8460 | -5/Extension | Spotted B-75 Beast 8478 | -5/Extension | Core integrity fell below 50% 8506 | -5/Extension | Discovered new exit (range 16) 8507 | -5/Extension | Discovered new exit (range 15) 8512 | -5/Extension | Lost 4 parts (1p3u) 8520 | -5/Extension | Identified exit to Factory 8561 | -5/Extension | Lost 3 parts (2n1u) 8571 | -5/Extension | Identified exit to Cetus 9119 | -5/Extension | Rescued a captive Derelict 9122 | -5/Extension | Rescued a captive Derelict 9489 | -5/Extension | Entered Cetus 9489 | -5/Cetus | Accompanied by 3 allies 9509 | -5/Cetus | Spotted Cetus Guard 9510 | -5/Cetus | Spotted Cetus Guard 9512 | -5/Cetus | Spotted Cetus Guard 9514 | -5/Cetus | Spotted Cetus Guard 9548 | -5/Cetus | Destroyed Cetus Guard 9549 | -5/Cetus | Lost 3 allies 9559 | -5/Cetus | Build established: Gunner 9583 | -5/Cetus | Destroyed Cetus Guard 9589 | -5/Cetus | Destroyed Cetus Guard 9604 | -5/Cetus | Destroyed Cetus Guard 9832 | -5/Cetus | Discovered new exit (range 15) 9859 | -5/Cetus | Spotted Cetus Guard 9859 | -5/Cetus | Spotted Cetus Guard 9864 | -5/Cetus | Destroyed Cetus Guard 9865 | -5/Cetus | Spotted Cetus Guard 9878 | -5/Cetus | Spotted Cetus Guard 9885 | -5/Cetus | Destroyed Cetus Guard 9891 | -5/Cetus | Core integrity fell below 20% 9895 | -5/Cetus | Destroyed Cetus Guard 9899 | -5/Cetus | Destroyed Cetus Guard 9902 | -5/Cetus | Lost 3 parts (2u1w) 9910 | -5/Cetus | Discovered exit to Factory (range 15) 9918 | -5/Cetus | Met Revision 17 10059 | -5/Cetus | Build established: Scavenger-Tank 10167 | -5/Cetus | Discovered exit to Factory (range 15) 10239 | -5/Cetus | Security sweep announced 10395 | -5/Cetus | Identified exit to Archives 10397 | -5/Cetus | Entered Archives 10514 | -5/Archives | Discovered new exit (range 16) 10524 | -5/Archives | Unable to access archive contents 10527 | -5/Archives | Discovered new exit (range 15) 10553 | -5/Archives | Discovered exit to Factory (range 16) 11558 | -5/Archives | Unable to access archive contents 11582 | -5/Archives | Identified exit to Hub_04(d) 11584 | -5/Archives | Entered Hub_04(d) 11751 | -5/Hub_04(d) | Discovered exit to Factory (range 9) 12068 | -5/Hub_04(d) | Specialist reinforcements revealed to be Infiltrators 12068 | -5/Hub_04(d) | Garrison activated, responded to threat 12113 | -5/Hub_04(d) | Found Prototype Device 12231 | -5/Hub_04(d) | Discovered exit to Factory (range 10) 12387 | -5/Hub_04(d) | Discovered exit to Factory (range 6) 12867 | -5/Hub_04(d) | Entered Factory 12867 | -4/Factory | Evolved 2 slots: Utility x2 12868 | -4/Factory | Identified Active Sensor Suite 12879 | -4/Factory | Identified exit to DSF 13279 | -4/Factory | Lost 4 parts (1u3w) 13509 | -4/Factory | Discovered new exit (range 9) 13636 | -4/Factory | Build established: Scavenger-Skirmisher 13867 | -4/Factory | Search patrols dispatched 14053 | -4/Factory | Lost 6 parts (3n1u2w) 14088 | -4/Factory | Core integrity fell below 50% 14117 | -4/Factory | Search patrols dispatched 14229 | -4/Factory | Core integrity fell below 20% 14262 | -4/Factory | Destroyed by S-27 Virus with Autogun Last Messages --------------- 14215_ Connecting with Fabricator... >>Build Building L-61 Swordsman... ETC: 187 14216_ HBKT 14257_ S-27 Virus misfires. Map ----- +----------------------------------------------------+ | # " " # # #?????????# | | # " " # ###+#################### | | # " " # # ## | | # " " + # """" ## | | # " " # # """" ## | | # " " # # " F" """" ## | | # " " # # """" """" ## | | # " " ### T### # ## | | # " " #?####?# ###+#######+##### | | # #??????# | | #######??????# | | ?????????????# | | ?????????????# | | ?????????????# | | ?????????????# ####+############### | | ?????????????# # #???? | | ?????????????# # #???? | | ?????????????# + """""" ! #???? | | ?????????????# # """""" #???? | | ?????????????# # """""" #???? | | ????########## # """""" #???? | | ???? = # ################???? | | ?????"""" # # #??????? | | ?????"""" # # #??????? | | ???? """" + # """ ] #??????? | | ???? """" #@ # """ #??????? | | ???# # # """ " " #??????? | | ???# # # ""R"" #??????? | | ???# = !# # """"" #??????? | | ???########+## ###+###########????? | | ?????????????# ?? | | ?????????????# ?? | | ??#########+## ?? | | ??? # ??? | | ??? # ??? | | #? ? # ################???? | | # """ """ # #??????????????????? | | # """ """ # #??????????????????? | | # """ """ + #??????????????????? | | # # #??????????????????? | | # # #??????????????????? | | # # #??????????????????? | | # ! # #??????????????????? | | # ""T"" # #??????????????????? | | # """"" # #??????????????????? | | ?############# #??????????????????? | | ?????????????# ##############?????? | | ????########## # =#?????? | | ????# # # "" #?????? | | ????# """ !# # "T """""" #?????? | +----------------------------------------------------+ Best States ------------- Heat Dissipation 101 Coolant Potential 65 Energy Generation 45 Energy Capacity 960 Matter Stores 300 Matter Capacity 300 Sight Range 22 Robot Scan Range 20 Terrain Scan Density 10 ECM Strength 2 Jamming Range 16 Additional Mass Support 9 Armor Coverage 1350 Utility Shielding 66 Evasion (%) 70 Targeting Accuracy 8 Target Analysis 11 Armor Integrity Analysis 30 Recoil Reduction 7 Kinecelleration 40 Offensive Hacking 12 Defensive Hacking 12 Authchip Count 3 Item Schematics ----------------- None Robot Schematics ------------------ None Fabricated ------------ Adv. Target Analyzer | x2 | -7/Factory | Preloaded Repaired ---------- Sub. Machine Gun | 22% | -8/Materials Studied --------- None Alien Tech Used ----------------- None Achievements -------------- Analysis Probe Ew, Corruption Hot Goods Hydra My Bad Some Acronyms Are Better Than Others Suspicious Challenges ------------ None Game ------ Seed BorePiercelightMembrane Manual? 0 Play Time 02:41:20 Cumulative 113.2 hours Start 2026.02.23 @ 03:47:03 End 2026.02.23 @ 20:11:41 Sessions 5 Manual Loads 0 Difficulty Rogue Special Mode None Game No. 136 Rogue 136 Adventurer 0 Explorer 0 Win Type - Total 0 Types 0/0/0/0/0/0/0/0/0/0 Lore% 49 Gallery% 46 Achievement% 31 Wizard Run 0 Options --------- Layout 2 ASCII 0 Keyboard 0 Movement Numpad Keybinds 0 Fullscreen 1 Font 24/Smallcaps Map View 50x44 Zoom Use 0% Tactical HUD 1 Map Filters NONE Filters NONE Steam 1 RUN: a1704d0a-8e45-477a-a42d-7f236c7597ba